[Event "Titled Tuesday Blitz December 20 Early 2022"]
[White "Jovanovic, Dobrica"]
[Black "Husnutdinov, Damir"]
[WhiteFideId "928674"]
[BlackFideId "14200910"]
[WhiteElo "2164"]
[BlackElo "2415"]
[Result "0-1"]
[Round "07"]
[TimeControl "180+2"]
[Date "2022.12.20"]
[WhiteClock "0:00:03"]
[BlackClock "0:00:05"]

1. e4 {[%clk 0:02:58]}  c5 {[%clk 0:02:36]} 2. c3 {[%clk 0:02:57]}  d5 {[%clk 0:02:33]} 3. exd5 {[%clk 0:02:57]}  Qxd5 {[%clk 0:02:32]} 4. d4 {[%clk 0:02:58]}  Nf6 {[%clk 0:02:31]} 5. Nf3 {[%clk 0:02:58]}  Bg4 {[%clk 0:02:30]} 6. Be2 {[%clk 0:02:58]}  e6 {[%clk 0:02:29]} 7. O-O {[%clk 0:02:54]}  Be7 {[%clk 0:02:26]} 8. Bf4 {[%clk 0:02:20]}  O-O {[%clk 0:02:21]} 9. Nbd2 {[%clk 0:02:19]}  cxd4 {[%clk 0:02:15]} 10. Nxd4 {[%clk 0:02:00]}  Bxe2 {[%clk 0:02:12]} 11. Nxe2 {[%clk 0:01:59]}  Rd8 {[%clk 0:02:04]} 12. Nf3 {[%clk 0:01:48]}  Nc6 {[%clk 0:02:01]} 13. Qxd5 {[%clk 0:01:41]}  Nxd5 {[%clk 0:02:02]} 14. Bg3 {[%clk 0:01:37]}  Bf6 {[%clk 0:01:57]} 15. Rfd1 {[%clk 0:01:33]}  h6 {[%clk 0:01:46]} 16. Nf4 {[%clk 0:01:30]}  Nxf4 {[%clk 0:01:31]} 17. Bxf4 {[%clk 0:01:31]}  Ne7 {[%clk 0:01:25]} 18. Bc7 {[%clk 0:01:20]}  Rxd1+ {[%clk 0:01:18]} 19. Rxd1 {[%clk 0:01:21]}  Nd5 {[%clk 0:01:18]} 20. Be5 {[%clk 0:01:19]}  Bxe5 {[%clk 0:01:05]} 21. Nxe5 {[%clk 0:01:20]}  Rc8 {[%clk 0:01:03]} 22. g3 {[%clk 0:01:01]}  b5 {[%clk 0:01:01]} 23. Kf1 {[%clk 0:01:00]}  a5 {[%clk 0:00:55]} 24. Ke2 {[%clk 0:00:58]}  b4 {[%clk 0:00:52]} 25. cxb4 {[%clk 0:00:57]}  axb4 {[%clk 0:00:48]} 26. Rd2 {[%clk 0:00:43]}  Ra8 {[%clk 0:00:42]} 27. b3 {[%clk 0:00:37]}  Nc3+ {[%clk 0:00:41]} 28. Kf3 {[%clk 0:00:33]}  Nxa2 {[%clk 0:00:31]} 29. Nc6 {[%clk 0:00:30]}  Nc1 {[%clk 0:00:20]} 30. Nxb4 {[%clk 0:00:21]}  Nxb3 {[%clk 0:00:19]} 31. Rd7 {[%clk 0:00:21]}  Ra3 {[%clk 0:00:15]} 32. Kg2 {[%clk 0:00:20]}  Nc5 {[%clk 0:00:13]} 33. Rd8+ {[%clk 0:00:19]}  Kh7 {[%clk 0:00:13]} 34. Nc6 {[%clk 0:00:20]}  Ne4 {[%clk 0:00:12]} 35. Ne5 {[%clk 0:00:17]}  f6 {[%clk 0:00:12]} 36. Nd3 {[%clk 0:00:15]}  Ra2 {[%clk 0:00:10]} 37. Kf3 {[%clk 0:00:15]}  Ng5+ {[%clk 0:00:09]} 38. Ke3 {[%clk 0:00:15]}  Ra3 {[%clk 0:00:09]} 39. h4 {[%clk 0:00:15]}  Nf7 {[%clk 0:00:09]} 40. Ke2 {[%clk 0:00:15]}  Ra2+ {[%clk 0:00:08]} 41. Ke3 {[%clk 0:00:14]}  Ra3 {[%clk 0:00:08]} 42. Rf8 {[%clk 0:00:13]}  Ne5 {[%clk 0:00:08]} 43. Rd8 {[%clk 0:00:14]}  Rxd3+ {[%clk 0:00:08]} 44. Rxd3 {[%clk 0:00:14]}  Nxd3 {[%clk 0:00:09]} 45. Kxd3 {[%clk 0:00:15]}  Kg6 {[%clk 0:00:10]} 46. Ke4 {[%clk 0:00:16]}  e5 {[%clk 0:00:10]} 47. g4 {[%clk 0:00:13]}  h5 {[%clk 0:00:10]} 48. f3 {[%clk 0:00:13]}  hxg4 {[%clk 0:00:10]} 49. fxg4 {[%clk 0:00:14]}  Kf7 {[%clk 0:00:10]} 50. Kf5 {[%clk 0:00:13]}  g6+ {[%clk 0:00:09]} 51. Ke4 {[%clk 0:00:13]}  Kg7 {[%clk 0:00:08]} 52. Kd5 {[%clk 0:00:12]}  Kh6 {[%clk 0:00:08]} 53. Ke4 {[%clk 0:00:12]}  Kg7 {[%clk 0:00:06]} 54. Kd5 {[%clk 0:00:11]}  Kf7 {[%clk 0:00:06]} 55. Ke4 {[%clk 0:00:10]}  Ke6 {[%clk 0:00:06]} 56. Kf3 {[%clk 0:00:07]}  f5 {[%clk 0:00:06]} 57. Kg3 {[%clk 0:00:04]}  e4 {[%clk 0:00:05]} 58. Kf4 {[%clk 0:00:03]}  Kf6 {[%clk 0:00:05]} 0-1


[Site "https://www.chess.com"]

[Event "Titled Tuesday Blitz December 20 Early 2022"]
[White "Kirillov-Dmitry"]
[Black "Tarno, Brian"]
[BlackFideId "10833820"]
[WhiteElo "2444"]
[BlackElo "2169"]
[Result "1-0"]
[Round "07"]
[TimeControl "180+2"]
[Date "2022.12.20"]
[WhiteClock "0:01:01"]
[BlackClock "0:00:01"]

1. e4 {[%clk 0:03:00]}  c5 {[%clk 0:02:59]} 2. Nc3 {[%clk 0:03:00]}  d6 {[%clk 0:02:58]} 3. f4 {[%clk 0:03:00]}  Nc6 {[%clk 0:02:57]} 4. Nf3 {[%clk 0:03:00]}  g6 {[%clk 0:02:57]} 5. Bc4 {[%clk 0:02:59]}  Bg7 {[%clk 0:02:58]} 6. d3 {[%clk 0:02:59]}  Nf6 {[%clk 0:02:58]} 7. O-O {[%clk 0:03:00]}  O-O {[%clk 0:02:58]} 8. h3 {[%clk 0:03:00]}  e6 {[%clk 0:02:41]} 9. Bb3 {[%clk 0:02:59]}  d5 {[%clk 0:02:37]} 10. e5 {[%clk 0:02:58]}  Nd7 {[%clk 0:02:29]} 11. Ne2 {[%clk 0:02:58]}  b5 {[%clk 0:02:25]} 12. c3 {[%clk 0:02:52]}  Nb6 {[%clk 0:02:06]} 13. Be3 {[%clk 0:02:50]}  c4 {[%clk 0:02:01]} 14. Bc2 {[%clk 0:02:49]}  cxd3 {[%clk 0:01:59]} 15. Bxd3 {[%clk 0:02:50]}  Nc4 {[%clk 0:01:59]} 16. Bc1 {[%clk 0:02:44]}  Rb8 {[%clk 0:01:57]} 17. b3 {[%clk 0:02:42]}  N4a5 {[%clk 0:01:54]} 18. Ba3 {[%clk 0:02:39]}  Re8 {[%clk 0:01:34]} 19. Bd6 {[%clk 0:02:38]}  Rb7 {[%clk 0:01:30]} 20. Ned4 {[%clk 0:02:38]}  Nxd4 {[%clk 0:01:27]} 21. cxd4 {[%clk 0:02:15]}  Bf8 {[%clk 0:01:25]} 22. Bxf8 {[%clk 0:02:15]}  Kxf8 {[%clk 0:01:16]} 23. Rc1 {[%clk 0:02:15]}  Bd7 {[%clk 0:01:03]} 24. Qd2 {[%clk 0:02:15]}  Qb6 {[%clk 0:00:42]} 25. Rc5 {[%clk 0:02:11]}  Rc8 {[%clk 0:00:22]} 26. Rxc8+ {[%clk 0:01:54]}  Bxc8 {[%clk 0:00:23]} 27. Rc1 {[%clk 0:01:54]}  Bd7 {[%clk 0:00:16]} 28. Rc5 {[%clk 0:01:40]}  Nc6 {[%clk 0:00:16]} 29. b4 {[%clk 0:01:31]}  a5 {[%clk 0:00:12]} 30. a3 {[%clk 0:01:30]}  axb4 {[%clk 0:00:12]} 31. axb4 {[%clk 0:01:31]}  Ra7 {[%clk 0:00:11]} 32. Rxb5 {[%clk 0:01:26]}  Qc7 {[%clk 0:00:09]} 33. Rc5 {[%clk 0:01:26]}  Ra1+ {[%clk 0:00:08]} 34. Kh2 {[%clk 0:01:25]}  Kg7 {[%clk 0:00:06]} 35. b5 {[%clk 0:01:23]}  Qb7 {[%clk 0:00:03]} 36. bxc6 {[%clk 0:01:23]}  Bxc6 {[%clk 0:00:04]} 37. f5 {[%clk 0:01:20]}  exf5 {[%clk 0:00:03]} 38. Qg5 {[%clk 0:01:19]}  Qa7 {[%clk 0:00:01]} 39. Qf6+ {[%clk 0:01:19]}  Kh6 {[%clk 0:00:02]} 40. g4 {[%clk 0:01:08]}  fxg4 {[%clk 0:00:01]} 41. hxg4 {[%clk 0:01:09]}  Qa3 {[%clk 0:00:01]} 42. Be2 {[%clk 0:01:00]}  Qa2 {[%clk 0:00:01]} 43. g5+ {[%clk 0:01:00]}  Kh5 {[%clk 0:00:01]} 44. Nd2+ {[%clk 0:01:01]}  Kh4 {[%clk 0:00:01]} 45. Qf4# {[%clk 0:01:01]} 1-0


[Site "https://www.chess.com"]

[Event "Titled Tuesday Blitz December 20 Early 2022"]
[White "Larochelle, Martial"]
[Black "queen_iryna"]
[WhiteFideId "2016311"]
[WhiteElo "2039"]
[BlackElo "2354"]
[Result "1/2-1/2"]
[Round "07"]
[TimeControl "180+2"]
[Date "2022.12.20"]
[WhiteClock "0:00:10"]
[BlackClock "0:00:05"]

1. d4 {[%clk 0:03:00]}  d6 {[%clk 0:03:00]} 2. c4 {[%clk 0:03:01]}  e5 {[%clk 0:03:00]} 3. dxe5 {[%clk 0:02:56]}  dxe5 {[%clk 0:03:01]} 4. Qxd8+ {[%clk 0:02:55]}  Kxd8 {[%clk 0:03:02]} 5. g3 {[%clk 0:02:52]}  f6 {[%clk 0:03:00]} 6. Bg2 {[%clk 0:02:52]}  c6 {[%clk 0:03:00]} 7. b3 {[%clk 0:02:42]}  Be6 {[%clk 0:03:01]} 8. Bb2 {[%clk 0:02:41]}  Nd7 {[%clk 0:03:01]} 9. Nf3 {[%clk 0:02:40]}  Kc7 {[%clk 0:03:01]} 10. Nbd2 {[%clk 0:02:39]}  Ne7 {[%clk 0:03:01]} 11. e3 {[%clk 0:02:39]}  Nc8 {[%clk 0:03:01]} 12. O-O-O {[%clk 0:02:38]}  Ncb6 {[%clk 0:03:01]} 13. h3 {[%clk 0:02:34]}  a5 {[%clk 0:03:01]} 14. g4 {[%clk 0:02:34]}  a4 {[%clk 0:03:01]} 15. Kc2 {[%clk 0:02:32]}  axb3+ {[%clk 0:03:01]} 16. axb3 {[%clk 0:02:31]}  Bb4 {[%clk 0:03:00]} 17. Ra1 {[%clk 0:02:30]}  Nc5 {[%clk 0:02:48]} 18. Bc3 {[%clk 0:02:20]}  Bxc3 {[%clk 0:02:38]} 19. Kxc3 {[%clk 0:02:16]}  Rxa1 {[%clk 0:02:33]} 20. Rxa1 {[%clk 0:02:16]}  Rd8 {[%clk 0:02:33]} 21. Bf1 {[%clk 0:02:13]}  Bf7 {[%clk 0:01:54]} 22. b4 {[%clk 0:02:10]}  Ne6 {[%clk 0:01:35]} 23. h4 {[%clk 0:02:08]}  h5 {[%clk 0:01:34]} 24. g5 {[%clk 0:02:06]}  Bg6 {[%clk 0:01:25]} 25. Bh3 {[%clk 0:01:59]}  Rd3+ {[%clk 0:00:59]} 26. Kb2 {[%clk 0:01:58]}  e4 {[%clk 0:00:48]} 27. Bxe6 {[%clk 0:01:44]}  exf3 {[%clk 0:00:47]} 28. Nxf3 {[%clk 0:01:43]}  Be4 {[%clk 0:00:33]} 29. Nd4 {[%clk 0:01:23]}  Rd2+ {[%clk 0:00:28]} 30. Kc3 {[%clk 0:01:22]}  Rxf2 {[%clk 0:00:25]} 31. gxf6 {[%clk 0:01:15]}  Rxf6 {[%clk 0:00:19]} 32. Rg1 {[%clk 0:01:13]}  g6 {[%clk 0:00:20]} 33. c5 {[%clk 0:01:11]}  Nd5+ {[%clk 0:00:13]} 34. Bxd5 {[%clk 0:01:10]}  cxd5 {[%clk 0:00:14]} 35. Ne2 {[%clk 0:01:09]}  Rf2 {[%clk 0:00:14]} 36. Nf4 {[%clk 0:01:05]}  Rc2+ {[%clk 0:00:14]} 37. Kd4 {[%clk 0:01:05]}  Rc4+ {[%clk 0:00:14]} 38. Ke5 {[%clk 0:01:05]}  Rxb4 {[%clk 0:00:13]} 39. Rxg6 {[%clk 0:00:54]}  Bxg6 {[%clk 0:00:12]} 40. Nxd5+ {[%clk 0:00:51]}  Kc6 {[%clk 0:00:09]} 41. Nxb4+ {[%clk 0:00:52]}  Kxc5 {[%clk 0:00:09]} 42. Nd5 {[%clk 0:00:52]}  Be8 {[%clk 0:00:08]} 43. Nf6 {[%clk 0:00:50]}  Bc6 {[%clk 0:00:08]} 44. Nxh5 {[%clk 0:00:41]}  b5 {[%clk 0:00:08]} 45. Nf4 {[%clk 0:00:41]}  Kc4 {[%clk 0:00:06]} 46. Ne2 {[%clk 0:00:37]}  b4 {[%clk 0:00:06]} 47. Nd4 {[%clk 0:00:37]}  Be8 {[%clk 0:00:03]} 48. Kf6 {[%clk 0:00:22]}  Kd3 {[%clk 0:00:02]} 49. Ke7 {[%clk 0:00:17]}  Bh5 {[%clk 0:00:01]} 50. Kd6 {[%clk 0:00:11]}  Kxe3 {[%clk 0:00:02]} 51. Kc5 {[%clk 0:00:11]}  Kf4 {[%clk 0:00:02]} 52. Kxb4 {[%clk 0:00:11]}  Kg4 {[%clk 0:00:03]} 53. Nf5 {[%clk 0:00:09]}  Kxf5 {[%clk 0:00:03]} 54. Kc5 {[%clk 0:00:09]}  Kg4 {[%clk 0:00:04]} 55. Kd4 {[%clk 0:00:10]}  Kxh4 {[%clk 0:00:05]} 1/2-1/2


[Site "https://www.chess.com"]

[Event "Titled Tuesday Blitz December 20 Early 2022"]
[White "Legendinunknown"]
[Black "Balasch Peries, Eduard"]
[BlackFideId "32067372"]
[WhiteElo "2731"]
[BlackElo "1671"]
[Result "1-0"]
[Round "07"]
[TimeControl "180+2"]
[Date "2022.12.20"]
[WhiteClock "0:01:57"]
[BlackClock "0:00:37"]

1. d4 {[%clk 0:03:00]}  d5 {[%clk 0:02:58]} 2. c4 {[%clk 0:02:57]}  e6 {[%clk 0:02:59]} 3. Nf3 {[%clk 0:02:53]}  Nf6 {[%clk 0:02:59]} 4. Nc3 {[%clk 0:02:53]}  Be7 {[%clk 0:02:59]} 5. g3 {[%clk 0:02:51]}  O-O {[%clk 0:02:57]} 6. Bg2 {[%clk 0:02:51]}  dxc4 {[%clk 0:02:57]} 7. Ne5 {[%clk 0:02:48]}  Nc6 {[%clk 0:02:55]} 8. Bxc6 {[%clk 0:02:47]}  bxc6 {[%clk 0:02:55]} 9. Nxc6 {[%clk 0:02:47]}  Qe8 {[%clk 0:02:54]} 10. Nxe7+ {[%clk 0:02:47]}  Qxe7 {[%clk 0:02:55]} 11. Qa4 {[%clk 0:02:46]}  Bb7 {[%clk 0:02:53]} 12. O-O {[%clk 0:02:45]}  e5 {[%clk 0:02:51]} 13. Qxc4 {[%clk 0:02:41]}  exd4 {[%clk 0:02:49]} 14. Qxd4 {[%clk 0:02:42]}  Rfd8 {[%clk 0:02:29]} 15. Qh4 {[%clk 0:02:39]}  h6 {[%clk 0:02:03]} 16. Be3 {[%clk 0:02:38]}  Nd5 {[%clk 0:02:02]} 17. Qxe7 {[%clk 0:02:37]}  Nxe7 {[%clk 0:02:00]} 18. Rfd1 {[%clk 0:02:37]}  Nd5 {[%clk 0:01:58]} 19. Nxd5 {[%clk 0:02:36]}  Rxd5 {[%clk 0:01:58]} 20. Rac1 {[%clk 0:02:33]}  c6 {[%clk 0:01:40]} 21. f3 {[%clk 0:02:28]}  a5 {[%clk 0:01:28]} 22. Rxd5 {[%clk 0:02:22]}  cxd5 {[%clk 0:01:23]} 23. Kf2 {[%clk 0:02:22]}  Ba6 {[%clk 0:01:19]} 24. Rc7 {[%clk 0:02:18]}  a4 {[%clk 0:01:14]} 25. Bd4 {[%clk 0:02:17]}  Bc4 {[%clk 0:01:12]} 26. a3 {[%clk 0:02:16]}  Bb3 {[%clk 0:01:07]} 27. h4 {[%clk 0:02:13]}  Re8 {[%clk 0:01:07]} 28. e3 {[%clk 0:02:13]}  h5 {[%clk 0:00:56]} 29. g4 {[%clk 0:02:11]}  hxg4 {[%clk 0:00:49]} 30. fxg4 {[%clk 0:02:12]}  Re6 {[%clk 0:00:49]} 31. g5 {[%clk 0:02:08]}  Re4 {[%clk 0:00:49]} 32. h5 {[%clk 0:02:06]}  Rg4 {[%clk 0:00:45]} 33. g6 {[%clk 0:02:06]}  fxg6 {[%clk 0:00:37]} 34. Rxg7+ {[%clk 0:02:05]}  Kf8 {[%clk 0:00:37]} 35. h6 {[%clk 0:01:57]} 1-0


[Site "https://www.chess.com"]

[Event "Titled Tuesday Blitz December 20 Early 2022"]
[White "Lion-Al-Messi"]
[Black "Michelin, Badi"]
[BlackFideId "26032708"]
[WhiteElo "2520"]
[BlackElo "1762"]
[Result "1-0"]
[Round "07"]
[TimeControl "180+2"]
[Date "2022.12.20"]
[WhiteClock "0:02:17"]
[BlackClock "0:00:01"]

1. e4 {[%clk 0:02:51]}  c5 {[%clk 0:02:58]} 2. Nf3 {[%clk 0:02:51]}  Nc6 {[%clk 0:02:58]} 3. d4 {[%clk 0:02:51]}  cxd4 {[%clk 0:02:59]} 4. Nxd4 {[%clk 0:02:52]}  Nf6 {[%clk 0:03:00]} 5. Nc3 {[%clk 0:02:52]}  e6 {[%clk 0:03:01]} 6. Bf4 {[%clk 0:02:52]}  d5 {[%clk 0:02:57]} 7. Ncb5 {[%clk 0:02:47]}  e5 {[%clk 0:02:50]} 8. exd5 {[%clk 0:02:41]}  Nxd4 {[%clk 0:02:06]} 9. Bxe5 {[%clk 0:02:41]}  Nxb5 {[%clk 0:01:02]} 10. Bxb5+ {[%clk 0:02:42]}  Bd7 {[%clk 0:01:03]} 11. Bxf6 {[%clk 0:02:43]}  gxf6 {[%clk 0:01:00]} 12. Be2 {[%clk 0:02:24]}  Bd6 {[%clk 0:00:59]} 13. O-O {[%clk 0:02:22]}  O-O {[%clk 0:00:56]} 14. g3 {[%clk 0:02:22]}  Kh8 {[%clk 0:00:55]} 15. Bd3 {[%clk 0:02:23]}  Rg8 {[%clk 0:00:54]} 16. Qh5 {[%clk 0:02:23]}  Rg7 {[%clk 0:00:53]} 17. Rae1 {[%clk 0:02:24]}  Be5 {[%clk 0:00:36]} 18. Re4 {[%clk 0:02:24]}  Qb6 {[%clk 0:00:25]} 19. Rh4 {[%clk 0:02:22]}  Qxb2 {[%clk 0:00:16]} 20. Bxh7 {[%clk 0:02:21]}  Bg4 {[%clk 0:00:13]} 21. Qh6 {[%clk 0:02:20]}  Bf4 {[%clk 0:00:09]} 22. Qxf4 {[%clk 0:02:18]}  Rxh7 {[%clk 0:00:04]} 23. Rxh7+ {[%clk 0:02:16]}  Kxh7 {[%clk 0:00:04]} 24. Qxg4 {[%clk 0:02:17]}  Qxc2 {[%clk 0:00:03]} 25. Re1 {[%clk 0:02:17]}  Rg8 {[%clk 0:00:02]} 26. Qh5+ {[%clk 0:02:17]}  Kg7 {[%clk 0:00:01]} 27. Re7 {[%clk 0:02:17]} 1-0


[Site "https://www.chess.com"]

[Event "Titled Tuesday Blitz December 20 Early 2022"]
[White "Malich, Burkhard, Dr."]
[Black "deibittowers"]
[WhiteFideId "4611330"]
[WhiteElo "2323"]
[BlackElo "2072"]
[Result "1-0"]
[Round "07"]
[TimeControl "180+2"]
[Date "2022.12.20"]
[WhiteClock "0:01:05"]
[BlackClock "0:00:36"]

1. d4 {[%clk 0:02:34]}  e5 {[%clk 0:02:58]} 2. dxe5 {[%clk 0:02:34]}  d6 {[%clk 0:02:59]} 3. Nf3 {[%clk 0:02:31]}  Bg4 {[%clk 0:02:58]} 4. Bf4 {[%clk 0:02:28]}  Nc6 {[%clk 0:02:57]} 5. exd6 {[%clk 0:02:28]}  Qf6 {[%clk 0:02:58]} 6. Bd2 {[%clk 0:02:20]}  Bxd6 {[%clk 0:02:56]} 7. Bc3 {[%clk 0:02:19]}  Qg6 {[%clk 0:02:52]} 8. Qd3 {[%clk 0:02:10]}  Bf5 {[%clk 0:02:51]} 9. Nh4 {[%clk 0:02:10]}  Bxd3 {[%clk 0:02:49]} 10. Nxg6 {[%clk 0:02:11]}  Bxg6 {[%clk 0:02:41]} 11. Bxg7 {[%clk 0:02:10]}  Be5 {[%clk 0:02:39]} 12. Bxh8 {[%clk 0:02:11]}  Bxh8 {[%clk 0:02:36]} 13. Nc3 {[%clk 0:02:12]}  Bxc3+ {[%clk 0:02:31]} 14. bxc3 {[%clk 0:02:11]}  Bxc2 {[%clk 0:02:32]} 15. Rc1 {[%clk 0:02:05]}  Ba4 {[%clk 0:02:28]} 16. g3 {[%clk 0:02:06]}  O-O-O {[%clk 0:02:28]} 17. Bh3+ {[%clk 0:02:04]}  Kb8 {[%clk 0:02:27]} 18. Bg2 {[%clk 0:02:05]}  Nge7 {[%clk 0:02:27]} 19. f4 {[%clk 0:01:59]}  Rd2 {[%clk 0:02:23]} 20. Kxd2 {[%clk 0:01:58]}  Na5 {[%clk 0:02:14]} 21. c4 {[%clk 0:01:56]}  Nf5 {[%clk 0:02:12]} 22. e3 {[%clk 0:01:55]}  Bd7 {[%clk 0:02:00]} 23. Be4 {[%clk 0:01:52]}  Nd6 {[%clk 0:01:59]} 24. Bd3 {[%clk 0:01:52]}  Be6 {[%clk 0:01:57]} 25. c5 {[%clk 0:01:50]}  Ne8 {[%clk 0:01:55]} 26. Rc3 {[%clk 0:01:48]}  b6 {[%clk 0:01:50]} 27. cxb6 {[%clk 0:01:47]}  cxb6 {[%clk 0:01:46]} 28. f5 {[%clk 0:01:46]}  Bxa2 {[%clk 0:01:46]} 29. e4 {[%clk 0:01:39]}  Nd6 {[%clk 0:01:44]} 30. e5 {[%clk 0:01:38]}  Ndc4+ {[%clk 0:01:42]} 31. Bxc4 {[%clk 0:01:38]}  Nxc4+ {[%clk 0:01:42]} 32. Kd3 {[%clk 0:01:26]}  Nxe5+ {[%clk 0:01:40]} 33. Ke4 {[%clk 0:01:27]}  f6 {[%clk 0:01:38]} 34. Rd1 {[%clk 0:01:26]}  a5 {[%clk 0:01:20]} 35. Rd8+ {[%clk 0:01:25]}  Kb7 {[%clk 0:01:20]} 36. Rh8 {[%clk 0:01:26]}  a4 {[%clk 0:01:19]} 37. Rxh7+ {[%clk 0:01:26]}  Ka6 {[%clk 0:01:19]} 38. Rh6 {[%clk 0:01:26]}  Bb1+ {[%clk 0:01:17]} 39. Kf4 {[%clk 0:01:23]}  Kb5 {[%clk 0:01:09]} 40. Rxf6 {[%clk 0:01:22]}  Nd3+ {[%clk 0:01:09]} 41. Ke3 {[%clk 0:01:20]}  Nb4 {[%clk 0:01:08]} 42. Rc1 {[%clk 0:01:12]}  Nd5+ {[%clk 0:01:06]} 43. Kd4 {[%clk 0:01:13]}  Nxf6 {[%clk 0:01:05]} 44. Rxb1+ {[%clk 0:01:14]}  Kc6 {[%clk 0:01:03]} 45. Ke5 {[%clk 0:01:10]}  Ng4+ {[%clk 0:01:02]} 46. Ke6 {[%clk 0:01:11]}  b5 {[%clk 0:00:57]} 47. h3 {[%clk 0:01:10]}  Nf2 {[%clk 0:00:51]} 48. f6 {[%clk 0:01:08]}  Nxh3 {[%clk 0:00:43]} 49. Kf5 {[%clk 0:01:08]}  Nf2 {[%clk 0:00:40]} 50. f7 {[%clk 0:01:07]}  a3 {[%clk 0:00:36]} 51. f8=Q {[%clk 0:01:07]}  a2 {[%clk 0:00:36]} 52. Qf6+ {[%clk 0:01:05]} 1-0


[Site "https://www.chess.com"]

[Event "Titled Tuesday Blitz December 20 Early 2022"]
[White "Michels, Achim"]
[Black "AnaKuchava"]
[WhiteFideId "4677889"]
[WhiteElo "2163"]
[BlackElo "2212"]
[Result "1/2-1/2"]
[Round "07"]
[TimeControl "180+2"]
[Date "2022.12.20"]
[WhiteClock "0:00:02"]
[BlackClock "0:00:19"]

1. e4 {[%clk 0:02:57]}  c5 {[%clk 0:02:59]} 2. Nf3 {[%clk 0:02:57]}  d6 {[%clk 0:02:57]} 3. d4 {[%clk 0:02:57]}  cxd4 {[%clk 0:02:58]} 4. Nxd4 {[%clk 0:02:57]}  Nf6 {[%clk 0:02:58]} 5. Nc3 {[%clk 0:02:58]}  Nc6 {[%clk 0:02:58]} 6. Bg5 {[%clk 0:02:58]}  Bd7 {[%clk 0:02:58]} 7. Qd2 {[%clk 0:02:58]}  Rc8 {[%clk 0:02:58]} 8. O-O-O {[%clk 0:02:55]}  Nxd4 {[%clk 0:02:58]} 9. Qxd4 {[%clk 0:02:54]}  Qa5 {[%clk 0:02:58]} 10. f4 {[%clk 0:01:44]}  Rxc3 {[%clk 0:02:50]} 11. bxc3 {[%clk 0:01:32]}  e5 {[%clk 0:02:27]} 12. Qb4 {[%clk 0:01:30]}  Qxb4 {[%clk 0:02:20]} 13. cxb4 {[%clk 0:01:29]}  Nxe4 {[%clk 0:02:20]} 14. Bh4 {[%clk 0:01:26]}  Nc3 {[%clk 0:02:15]} 15. Rd3 {[%clk 0:01:06]}  Nxa2+ {[%clk 0:02:04]} 16. Kb2 {[%clk 0:01:06]}  Nxb4 {[%clk 0:02:04]} 17. Rb3 {[%clk 0:01:05]}  a5 {[%clk 0:01:52]} 18. c3 {[%clk 0:01:03]}  Nc6 {[%clk 0:01:42]} 19. Rxb7 {[%clk 0:01:02]}  Be7 {[%clk 0:01:31]} 20. Bxe7 {[%clk 0:00:44]}  Kxe7 {[%clk 0:01:32]} 21. Bb5 {[%clk 0:00:37]}  Ke6 {[%clk 0:01:14]} 22. f5+ {[%clk 0:00:28]}  Kxf5 {[%clk 0:00:43]} 23. Rxd7 {[%clk 0:00:27]}  Rb8 {[%clk 0:00:41]} 24. c4 {[%clk 0:00:27]}  Ke6 {[%clk 0:00:37]} 25. Rc7 {[%clk 0:00:23]}  Nd4 {[%clk 0:00:37]} 26. Rd1 {[%clk 0:00:14]}  Nxb5 {[%clk 0:00:36]} 27. cxb5 {[%clk 0:00:14]}  Rxb5+ {[%clk 0:00:37]} 28. Ka3 {[%clk 0:00:14]}  Rb6 {[%clk 0:00:31]} 29. Ka4 {[%clk 0:00:14]}  Rb2 {[%clk 0:00:28]} 30. Rc6 {[%clk 0:00:09]}  Rxg2 {[%clk 0:00:25]} 31. Rcxd6+ {[%clk 0:00:08]}  Kf5 {[%clk 0:00:22]} 32. Rf1+ {[%clk 0:00:08]}  Ke4 {[%clk 0:00:23]} 33. Rxf7 {[%clk 0:00:08]}  Rxh2 {[%clk 0:00:20]} 34. Rxg7 {[%clk 0:00:08]}  h5 {[%clk 0:00:19]} 35. Rg5 {[%clk 0:00:07]}  h4 {[%clk 0:00:19]} 36. Re6 {[%clk 0:00:05]}  h3 {[%clk 0:00:18]} 37. Rgxe5+ {[%clk 0:00:04]}  Kf4 {[%clk 0:00:19]} 38. Re4+ {[%clk 0:00:05]}  Kf5 {[%clk 0:00:19]} 39. Re2 {[%clk 0:00:04]}  Rxe2 {[%clk 0:00:17]} 40. Rxe2 {[%clk 0:00:03]}  Kf4 {[%clk 0:00:18]} 41. Kxa5 {[%clk 0:00:01]}  Kg3 {[%clk 0:00:18]} 42. Kb4 {[%clk 0:00:01]}  h2 {[%clk 0:00:18]} 43. Rxh2 {[%clk 0:00:02]}  Kxh2 {[%clk 0:00:19]} 1/2-1/2


[Site "https://www.chess.com"]

[Event "Titled Tuesday Blitz December 20 Early 2022"]
[White "Mikusinski, Bartosz"]
[Black "Benamar, Benious"]
[WhiteFideId "1111256"]
[BlackFideId "45118841"]
[WhiteElo "2090"]
[BlackElo "1136"]
[Result "0-1"]
[Round "07"]
[TimeControl "180+2"]
[Date "2022.12.20"]
[WhiteClock "0:00:03"]
[BlackClock "0:00:03"]

1. e4 {[%clk 0:02:09]}  d6 {[%clk 0:02:57]} 2. d4 {[%clk 0:02:09]}  Nf6 {[%clk 0:02:57]} 3. Nc3 {[%clk 0:02:05]}  c6 {[%clk 0:02:57]} 4. Nf3 {[%clk 0:02:01]}  Bg4 {[%clk 0:02:57]} 5. Be2 {[%clk 0:01:59]}  e6 {[%clk 0:02:57]} 6. Bf4 {[%clk 0:01:54]}  d5 {[%clk 0:02:56]} 7. e5 {[%clk 0:01:50]}  Nfd7 {[%clk 0:02:56]} 8. Qd2 {[%clk 0:01:26]}  c5 {[%clk 0:02:54]} 9. dxc5 {[%clk 0:01:21]}  Nc6 {[%clk 0:02:53]} 10. O-O-O {[%clk 0:01:05]}  Bxc5 {[%clk 0:02:51]} 11. Ne1 {[%clk 0:00:57]}  Ndxe5 {[%clk 0:02:07]} 12. Bxg4 {[%clk 0:00:52]}  Nxg4 {[%clk 0:02:07]} 13. Nd3 {[%clk 0:00:53]}  Be7 {[%clk 0:01:55]} 14. h3 {[%clk 0:00:52]}  Nf6 {[%clk 0:01:55]} 15. g4 {[%clk 0:00:53]}  Qa5 {[%clk 0:01:51]} 16. Kb1 {[%clk 0:00:53]}  O-O-O {[%clk 0:01:46]} 17. Rhe1 {[%clk 0:00:52]}  d4 {[%clk 0:01:36]} 18. Ne2 {[%clk 0:00:46]}  Qxd2 {[%clk 0:01:33]} 19. Rxd2 {[%clk 0:00:47]}  h5 {[%clk 0:01:28]} 20. g5 {[%clk 0:00:46]}  Ne4 {[%clk 0:01:27]} 21. Rdd1 {[%clk 0:00:42]}  Nxg5 {[%clk 0:01:27]} 22. Ng1 {[%clk 0:00:39]}  h4 {[%clk 0:01:21]} 23. Ne5 {[%clk 0:00:32]}  Nxe5 {[%clk 0:00:43]} 24. Rxe5 {[%clk 0:00:33]}  Nh7 {[%clk 0:00:36]} 25. Ra5 {[%clk 0:00:26]}  a6 {[%clk 0:00:28]} 26. Nf3 {[%clk 0:00:26]}  Bf6 {[%clk 0:00:24]} 27. Rc5+ {[%clk 0:00:24]}  Kd7 {[%clk 0:00:24]} 28. Rc7+ {[%clk 0:00:23]}  Ke8 {[%clk 0:00:23]} 29. Rxb7 {[%clk 0:00:23]}  Nf8 {[%clk 0:00:21]} 30. Be5 {[%clk 0:00:18]}  Rh5 {[%clk 0:00:12]} 31. Bxf6 {[%clk 0:00:18]}  gxf6 {[%clk 0:00:13]} 32. Rxd4 {[%clk 0:00:15]}  Rxd4 {[%clk 0:00:11]} 33. Nxd4 {[%clk 0:00:16]}  Rd5 {[%clk 0:00:12]} 34. c3 {[%clk 0:00:16]}  Ng6 {[%clk 0:00:11]} 35. Kc2 {[%clk 0:00:15]}  Nf4 {[%clk 0:00:10]} 36. Nc6 {[%clk 0:00:11]}  Nxh3 {[%clk 0:00:08]} 37. Rb4 {[%clk 0:00:11]}  Rh5 {[%clk 0:00:04]} 38. f3 {[%clk 0:00:06]}  Ng5 {[%clk 0:00:03]} 39. f4 {[%clk 0:00:06]}  Nf3 {[%clk 0:00:03]} 40. Rb8+ {[%clk 0:00:03]}  Kd7 {[%clk 0:00:03]} 41. Nb4 {[%clk 0:00:02]}  h3 {[%clk 0:00:02]} 42. Rb7+ {[%clk 0:00:02]}  Kc8 {[%clk 0:00:02]} 43. Rxf7 {[%clk 0:00:02]}  h2 {[%clk 0:00:02]} 44. Nc6 {[%clk 0:00:02]}  h1=Q {[%clk 0:00:02]} 45. Na7+ {[%clk 0:00:02]}  Kd8 {[%clk 0:00:02]} 46. Nc6+ {[%clk 0:00:02]}  Ke8 {[%clk 0:00:03]} 47. Re7+ {[%clk 0:00:02]}  Kf8 {[%clk 0:00:03]} 48. Rxe6 {[%clk 0:00:03]}  Qg2+ {[%clk 0:00:03]} 49. Kb3 {[%clk 0:00:03]}  Nd2+ {[%clk 0:00:03]} 50. Ka3 {[%clk 0:00:04]}  Qd5 {[%clk 0:00:03]} 51. Rxf6+ {[%clk 0:00:03]}  Kg7 {[%clk 0:00:03]} 0-1


[Site "https://www.chess.com"]